lending/lending_fUSD_20250122
["ID","MTS","AMOUNT","RATE_DAILY","PERIOD"]
[349999097,1737558640552,-493.0,0.00020847,2]
[349999099,1737558640561,-34.69007569,0.00020966,2]
[349999101,1737558640571,-500.0,0.00020966,2]
[349999103,1737558640581,-500.0,0.00020966,2]
[349999105,1737558640590,-366.529575,0.00020966,2]
[349999108,1737558640638,-316.7422,0.00020798,2]
[349999109,1737558640648,-133.470425,0.00020966,2]
[349999110,1737558640658,-500.0,0.00020966,2]
[349999111,1737558640667,-500.0,0.00020966,2]
[349999112,1737558640677,-500.0,0.00020966,2]
[349999113,1737558640686,-500.0,0.00020966,2]
[349999115,1737558640696,-500.0,0.00020966,2]
[349999117,1737558640705,-33.48080356,0.00020966,2]
[349999329,1737558642761,-200.0,0.00020847,2]
[349999331,1737558642771,-200.0,0.00020847,2]
[349999333,1737558642780,-200.0,0.00020847,2]
[349999335,1737558642790,-200.0,0.00020847,2]
[349999337,1737558642799,-202.0,0.00020847,2]
[349999339,1737558642808,-40.2820114,0.00020898,2]
[349999341,1737558642819,-308.07616133,0.00020898,2]
[349999343,1737558642831,-151.64182727,0.00020898,2]
[349999345,1737558642840,-500.0,0.00020965,2]
[349999347,1737558642850,-466.51919644,0.00020966,2]
[349999349,1737558642860,-500.0,0.00020966,2]
[349999351,1737558642869,-500.0,0.00020966,2]
[349999353,1737558642878,-500.0,0.00020966,2]
[349999355,1737558642887,-500.0,0.00020966,2]
[349999357,1737558642897,-500.0,0.00020966,2]
[349999359,1737558642906,-500.0,0.00020966,2]
[349999361,1737558642916,-500.0,0.00020966,2]
[349999363,1737558642926,-500.0,0.00020966,2]
[349999365,1737558642935,-500.0,0.00020966,2]
[349999367,1737558642944,-500.0,0.00020966,2]
[349999369,1737558642954,-500.0,0.00020966,2]
[349999371,1737558642963,-500.0,0.00020966,2]
[349999373,1737558642973,-500.0,0.00020966,2]
[349999375,1737558642982,-500.0,0.00020966,2]
[349999377,1737558642992,-500.0,0.00020966,2]
[349999378,1737558643002,-500.0,0.00020966,2]
[349999380,1737558643012,-500.0,0.00020966,2]
[349999382,1737558643022,-500.0,0.00020966,2]
[349999384,1737558643031,-500.0,0.00020966,2]
[349999386,1737558643041,-500.0,0.00020966,2]
[349999388,1737558643051,-500.0,0.00020966,2]
[349999390,1737558643061,-500.0,0.00020966,2]
[349999393,1737558643071,-500.0,0.00020966,2]
[349999394,1737558643081,-56.35610429,0.00020966,2]
[349999397,1737558643098,-443.64389571,0.00020966,2]
[349999399,1737558643111,-542.61,0.00020966,2]
[349999401,1737558643121,-500.0,0.00020966,2]
[349999403,1737558643131,-828.67,0.00020966,2]
[349999405,1737558643141,-495.75148817,0.00020966,2]
[349999407,1737558643152,-500.0,0.00020966,2]
[349999409,1737558643162,-519.47313621,0.00020966,2]
[349999411,1737558643172,-844.72,0.00020966,2]
[349999413,1737558643183,-500.0,0.00020966,2]
[349999415,1737558643193,-500.0,0.00020966,2]
[349999417,1737558643202,-500.0,0.00020966,2]
[349999419,1737558643212,-500.0,0.00020966,2]
[349999421,1737558643222,-910.94,0.00020966,2]
[349999423,1737558643232,-432.68591451,0.00020966,2]
[349999425,1737558643246,-67.31408549,0.00020966,2]
[349999427,1737558643256,-500.0,0.00020966,2]
[349999429,1737558643266,-500.0,0.00020966,2]
[349999431,1737558643275,-500.0,0.00020966,2]
[349999433,1737558643286,-500.0,0.00020966,2]
[349999435,1737558643296,-500.0,0.00020966,2]
[349999437,1737558643305,-351.08261844,0.00020966,2]
[349999439,1737558643315,-500.0,0.00020966,2]
[349999441,1737558643326,-500.0,0.00020966,2]
[349999443,1737558643336,-582.93,0.00020966,2]
[349999446,1737558643345,-500.0,0.00020966,2]
[349999449,1737558643355,-500.0,0.00020966,2]
[349999451,1737558643365,-500.0,0.00020966,2]
[349999453,1737558643374,-500.0,0.00020966,2]
[349999455,1737558643384,-500.0,0.00020966,2]
[349999457,1737558643394,-500.0,0.00020966,2]
[349999459,1737558643403,-500.0,0.00020966,2]
[349999461,1737558643413,-398.58581596,0.00020966,2]
[349999463,1737558643424,-101.41418404,0.00020966,2]
[349999465,1737558643434,-500.0,0.00020966,2]
[349999466,1737558643443,-500.0,0.00020966,2]
[349999467,1737558643453,-414.97307571,0.00020966,2]
[349999468,1737558643462,-926.7,0.00020966,2]
[349999469,1737558643472,-500.0,0.00020966,2]
[349999470,1737558643482,-708.27,0.00020966,2]
[349999471,1737558643492,-127.37767151,0.00020966,2]
[349999631,1737558645544,-500.0,0.00020897,2]
[349999635,1737558645554,-1841.53,0.00020965,2]
[349999639,1737558645564,-372.62232849,0.00020966,2]
[349999641,1737558645573,-500.0,0.00020966,2]
[349999644,1737558645583,-500.0,0.00020966,2]
[349999646,1737558645592,-500.0,0.00020966,2]
[349999648,1737558645602,-500.0,0.00020966,2]
[349999650,1737558645611,-500.0,0.00020966,2]
[349999652,1737558645620,-449.07289162,0.00020966,2]
[349999654,1737558645630,-737.76,0.00020966,2]
[349999656,1737558645639,-620.08,0.00020966,2]
[349999657,1737558645648,-500.0,0.00020966,2]
[349999658,1737558645658,-3119.82,0.00020966,2]
[349999659,1737558645667,-500.0,0.00020966,2]
[349999660,1737558645676,-500.0,0.00020966,2]
[349999661,1737558645685,-500.0,0.00020966,2]
[349999662,1737558645694,-500.0,0.00020966,2]
[349999663,1737558645703,-500.0,0.00020966,2]
[349999664,1737558645712,-500.0,0.00020966,2]
[349999665,1737558645722,-500.0,0.00020966,2]
[349999666,1737558645731,-500.0,0.00020966,2]
[349999667,1737558645903,-680.53,0.00020966,2]
[349999668,1737558645913,-707.208258,0.00020966,2]
[349999669,1737558645923,-591.42,0.00020966,2]
[349999670,1737558645932,-531.35475704,0.00020966,2]
[349999671,1737558645941,-500.0,0.00020966,2]
[349999672,1737558645950,-500.0,0.00020966,2]
[349999673,1737558645960,-500.0,0.00020966,2]
[349999674,1737558645969,-500.0,0.00020966,2]
[349999675,1737558645979,-500.0,0.00020966,2]
[349999677,1737558645988,-500.0,0.00020966,2]
[349999679,1737558645998,-673.89,0.00020966,2]
[349999681,1737558646007,-500.0,0.00020966,2]
[349999683,1737558646016,-501.93,0.00020966,2]
[349999684,1737558646025,-500.0,0.00020966,2]
[349999686,1737558646034,-1040.763275,0.00020966,2]
[349999688,1737558646044,-500.0,0.00020966,2]
[349999690,1737558646053,-500.0,0.00020966,2]
[349999692,1737558646063,-500.0,0.00020966,2]
[349999694,1737558646073,-1057.39,0.00020966,2]
[349999696,1737558646082,-579.21,0.00020966,2]
[349999697,1737558646091,-156.797105,0.00020966,2]
[349999698,1737558646102,-500.0,0.00020966,2]
[349999699,1737558646113,-500.0,0.00020966,2]
[349999700,1737558646122,-500.0,0.00020966,2]
[349999701,1737558646131,-500.0,0.00020966,2]
[349999702,1737558646141,-500.0,0.00020966,2]
[349999703,1737558646150,-500.0,0.00020966,2]
[349999704,1737558646159,-1031.71,0.00020966,2]
[349999705,1737558646168,-500.0,0.00020966,2]
[349999706,1737558646179,-500.0,0.00020966,2]
[349999707,1737558646188,-500.0,0.00020966,2]
[349999708,1737558646198,-500.0,0.00020966,2]
[349999709,1737558646208,-500.0,0.00020966,2]
[349999710,1737558646218,-838.34,0.00020966,2]
[349999711,1737558646228,-1457.86,0.00020966,2]
[349999712,1737558646237,-500.0,0.00020966,2]
[349999713,1737558646246,-500.0,0.00020966,2]
[349999714,1737558646255,-500.0,0.00020966,2]
[349999715,1737558646264,-991.95,0.00020966,2]
[349999716,1737558646273,-921.31,0.00020966,2]
[349999717,1737558646283,-500.0,0.00020966,2]
[349999718,1737558646292,-500.0,0.00020966,2]
[349999719,1737558646301,-500.0,0.00020966,2]
[349999720,1737558646311,-500.0,0.00020966,2]
[349999721,1737558646320,-500.0,0.00020966,2]
[349999722,1737558646329,-1501.75,0.00020966,2]
[349999723,1737558646339,-500.0,0.00020966,2]
[349999724,1737558646348,-500.0,0.00020966,2]
[349999725,1737558646357,-726.17,0.00020966,2]
[349999726,1737558646367,-500.0,0.00020966,2]
[349999727,1737558646376,-500.0,0.00020966,2]
[349999728,1737558646385,-500.0,0.00020966,2]
[349999729,1737558646395,-500.0,0.00020966,2]
[349999730,1737558646403,-500.0,0.00020966,2]
[349999731,1737558646413,-500.0,0.00020966,2]
[349999732,1737558646422,-500.0,0.00020966,2]
[349999733,1737558646431,-500.0,0.00020966,2]
[349999734,1737558646440,-500.0,0.00020966,2]
[349999735,1737558646449,-796.25,0.00020966,2]
[349999736,1737558646459,-500.0,0.00020966,2]
[349999737,1737558646469,-500.0,0.00020966,2]
[349999738,1737558646479,-1575.86,0.00020966,2]
[349999739,1737558646491,-500.0,0.00020966,2]
[349999740,1737558646501,-1900.98,0.00020966,2]
[349999741,1737558646511,-500.0,0.00020966,2]
[349999742,1737558646520,-500.0,0.00020966,2]
[349999743,1737558646530,-833.33,0.00020966,2]
[349999744,1737558646539,-500.0,0.00020966,2]
[349999745,1737558646549,-500.0,0.00020966,2]
[349999746,1737558646558,-500.0,0.00020966,2]
[349999747,1737558646569,-1195.38,0.00020966,2]
[349999748,1737558646579,-500.0,0.00020966,2]
[349999749,1737558646589,-500.0,0.00020966,2]
[349999750,1737558646599,-500.0,0.00020966,2]
[349999751,1737558646610,-500.0,0.00020966,2]
[349999752,1737558646619,-500.0,0.00020966,2]
[349999753,1737558646629,-2619.9,0.00020966,2]
[349999754,1737558646639,-613.93,0.00020966,2]
[349999755,1737558646650,-201.50972909,0.00020966,2]
[349999756,1737558646664,-298.49027091,0.00020966,2]
[349999757,1737558646673,-40.99808239,0.00020966,2]
[349999758,1737558646710,-2151.88191761,0.00020966,2]
[349999759,1737558646719,-500.0,0.00020966,2]
[349999760,1737558646729,-500.0,0.00020966,2]
[349999761,1737558646738,-500.0,0.00020966,2]
[349999762,1737558646748,-387.2746398,0.00020966,2]
[349999763,1737558646760,-112.7253602,0.00020966,2]
[349999764,1737558646770,-500.0,0.00020966,2]
[349999765,1737558646779,-1044.84,0.00020966,2]
[349999766,1737558646788,-555.26,0.00020966,2]
[349999767,1737558646797,-2634.11,0.00020966,2]
[349999768,1737558646806,-500.0,0.00020966,2]
[349999769,1737558646815,-500.0,0.00020966,2]
[349999770,1737558646824,-500.0,0.00020966,2]
[349999771,1737558646833,-500.0,0.00020966,2]
[349999772,1737558646842,-500.0,0.00020966,2]
[349999773,1737558646851,-500.0,0.00020966,2]
[349999774,1737558646860,-500.0,0.00020966,2]
[349999775,1737558646870,-500.0,0.00020966,2]
[349999776,1737558646879,-500.0,0.00020966,2]
[349999777,1737558646889,-582.80443975,0.00020966,2]
[349999778,1737558647018,-984.37556025,0.00020966,2]
[349999779,1737558647027,-500.0,0.00020966,2]
[349999780,1737558647037,-2875.82,0.00020966,2]
[349999781,1737558647046,-344.5125989,0.00020966,2]
[349999782,1737558647061,-146.66019787,0.00020966,2]
[349999783,1737558647071,-500.0,0.00020966,2]
[349999784,1737558647080,-500.0,0.00020966,2]
[349999785,1737558647094,-500.0,0.00020966,2]
[349999786,1737558647103,-236.3803771,0.00020966,2]
[349999787,1737558647119,-263.6196229,0.00020966,2]
[349999788,1737558647129,-500.0,0.00020966,2]
[349999789,1737558647139,-1068.89,0.00020966,2]
[349999790,1737558647149,-500.0,0.00020966,2]
[349999791,1737558647159,-500.0,0.00020966,2]
[349999792,1737558647168,-500.0,0.00020966,2]
[349999793,1737558647177,-500.0,0.00020966,2]
[349999794,1737558647189,-553.89,0.00020966,2]
[349999795,1737558647198,-339.83192287,0.00020966,2]
[349999796,1737558647208,-2804.46,0.00020966,2]
[349999797,1737558647218,-500.0,0.00020966,2]
[349999798,1737558647227,-500.0,0.00020966,2]
[349999799,1737558647237,-500.0,0.00020966,2]
[349999800,1737558647247,-500.0,0.00020966,2]
[349999801,1737558647256,-987.81,0.00020966,2]
[349999802,1737558647265,-500.0,0.00020966,2]
[349999803,1737558647275,-888.77,0.00020966,2]
[349999804,1737558647284,-500.0,0.00020966,2]
[349999805,1737558647293,-500.0,0.00020966,2]
[349999806,1737558647303,-500.0,0.00020966,2]
[349999807,1737558647312,-500.0,0.00020966,2]
[349999808,1737558647322,-500.0,0.00020966,2]
[349999809,1737558647332,-500.0,0.00020966,2]
[349999810,1737558647341,-500.0,0.00020966,2]
[349999811,1737558647350,-500.0,0.00020966,2]
[349999812,1737558647359,-1259.57,0.00020966,2]
[349999813,1737558647369,-161.62,0.00020966,2]
[349999814,1737558647380,-500.0,0.00020966,2]
[349999815,1737558647389,-1268.06,0.00020966,2]
[349999816,1737558647399,-449.84619753,0.00020966,2]
[349999817,1737558732794,158.14,0.00010137,2]
[349999833,1737559717855,15331.62631828,0.00013,15]
[349999836,1737559766162,-195.63601571,0.00016,2]
[349999847,1737559831823,-150.58832236,0.00016438,2]
[349999849,1737559831833,-1000.0,0.00016794,2]
[349999851,1737559831843,-1000.0,0.00016804,2]
[349999852,1737559831853,-713.34,0.00017667,2]
[349999853,1737559831863,-914.17225847,0.00018548,2]
[349999854,1737559831873,-500.0,0.00018548,2]
[349999855,1737559831883,-500.0,0.00018548,2]
[349999856,1737559831893,-150.0,0.0001881,2]
[349999857,1737559831903,-300.0,0.00018899,2]
[349999858,1737559831913,-7386.0024536,0.000189,2]
[349999859,1737559831923,-22312.18223831,0.00019,2]
[349999860,1737559831933,-1000.0,0.0001917,2]
[349999861,1737559831943,-250.0,0.00019186,2]
[349999862,1737559831953,-150.0,0.00019225,2]
[349999863,1737559831963,-1000.0,0.00019239,2]
[349999864,1737559831972,-587.54,0.00019282,2]
[349999865,1737559831982,-172.62,0.0001929,2]
[349999866,1737559832003,-150.0,0.00019343,2]
[349999867,1737559832012,-258.46,0.00019364,2]
[349999868,1737559832022,-973.14,0.00019413,2]
[349999869,1737559832031,-1500.0,0.00019413,2]
[349999870,1737559832041,-250.0,0.00019438,2]
[349999871,1737559832051,-150.0,0.00019483,2]
[349999872,1737559832060,-1000.0,0.00019487,2]
[349999873,1737559832070,-150.0,0.00019649,2]
[349999874,1737559832080,-150.0,0.00019691,2]
[349999875,1737559832090,-4496.14,0.00019774,2]
[349999876,1737559832099,-376.04,0.00019816,2]
[349999877,1737559832108,-1702.1308,0.000199,2]
[349999878,1737559832119,-543.59678983,0.000199,2]
[349999879,1737559832129,-713.34,0.00019931,2]
[349999880,1737559832139,-200.0,0.00019965,2]
[349999881,1737559832149,-543.59678975,0.00019969,2]
[349999882,1737559832164,-15117.37,0.00019982,2]
[349999883,1737559832174,-7472.82456,0.0002,7]
[349999884,1737559832183,-2795.85613,0.0002,7]
[349999885,1737559832193,-1421.369318,0.0002,7]
[349999886,1737559832203,-1881.2426393,0.0002,14]
[349999887,1737559832213,-2184.27814788,0.0002,4]
[349999888,1737559832223,-23485.37369853,0.0002,4]
[349999889,1737559832233,-543.59678975,0.00020038,2]
[349999890,1737559832244,-1601.77,0.00020041,2]
[349999891,1737559832253,-910.44,0.00020041,2]
[349999892,1737559832262,-840.385,0.00020071,2]
[349999893,1737559832271,-13948.44,0.00020072,2]
[349999894,1737559832281,-543.59678975,0.00020107,2]
[349999895,1737559832291,-150.0,0.00020131,2]
[349999896,1737559832300,-178.88,0.00020164,2]
[349999897,1737559832309,-543.59678975,0.00020176,2]
[349999898,1737559832319,-2264.0,0.000202,2]
[349999899,1737559832329,-543.59678975,0.00020245,2]
[349999900,1737559832339,-155.24,0.00020278,30]
[349999901,1737559832348,-543.59678975,0.00020314,2]
[349999902,1737559832359,-160.581,0.0002033,2]
[349999903,1737559832374,-543.59678975,0.00020383,2]
[349999904,1737559832384,-543.59678975,0.00020452,2]
[349999905,1737559832394,-150.0,0.0002046,2]
[349999906,1737559832403,-150.0,0.00020465,2]
[349999907,1737559832413,-543.59678975,0.00020521,2]
[349999908,1737559832423,-150.0,0.00020544,2]
[349999909,1737559832433,-1000.0,0.0002055,2]
[349999910,1737559832443,-150.0,0.00020559,2]
[349999912,1737559832454,-543.59678975,0.0002059,2]
[349999913,1737559832464,-420.0,0.00020602,2]
[349999915,1737559832474,-543.59678975,0.00020659,2]
[349999917,1737559832486,-543.59678975,0.00020728,2]
[349999920,1737559832495,-500.0,0.0002074,2]
[349999922,1737559832506,-500.0,0.0002074,2]
[349999924,1737559832515,-200.0,0.00020794,2]
[349999926,1737559832525,-1150.46062296,0.00020795,2]
[349999928,1737559832536,-3220.73671469,0.00020795,2]
[349999929,1737559832545,-543.59678975,0.00020797,2]
[349999931,1737559832554,-725.4122,0.00020797,2]
[349999933,1737559832564,-1000.0,0.000208,2]
[349999935,1737559832573,-1150.46062296,0.00020802,2]
[349999937,1737559832583,-33741.12989369,0.00020804,2]
[349999939,1737559832593,-2360.08799691,0.00020814,2]
[349999942,1737559832603,-16697.91379615,0.00020814,2]
[349999943,1737559832612,-200.0,0.00020821,2]
[349999945,1737559832621,-2360.08799691,0.00020821,2]
[349999948,1737559832631,-150.0,0.00020829,2]
[349999950,1737559832641,-3220.73671469,0.00020829,2]
[349999952,1737559832650,-3220.73671469,0.0002083,2]
[349999953,1737559832660,-33741.12989369,0.00020832,2]
[349999954,1737559832669,-16697.91379615,0.00020834,2]
[349999955,1737559832679,-200.0,0.00020836,2]
[349999956,1737559832688,-1150.46062296,0.00020842,2]
[349999957,1737559832697,-16697.91379615,0.00020848,2]
[349999958,1737559832707,-2360.08799691,0.0002086,2]
[349999959,1737559832716,-1150.46062296,0.00020862,2]
[349999960,1737559832726,-543.59678975,0.00020866,2]
[349999961,1737559832739,-1396.4435,0.00020866,2]
[349999963,1737559832749,-1150.46062296,0.00020877,2]
[349999965,1737559832759,-33741.12989369,0.00020878,2]
[349999967,1737559832768,-33741.12989369,0.00020881,2]
[349999969,1737559832777,-16697.91379615,0.00020891,2]
[349999971,1737559832787,-33741.12989369,0.00020894,2]
[349999973,1737559832797,-3220.73671469,0.00020896,2]
[349999975,1737559832806,-3983.00893365,0.00020896,4]
[349999977,1737559832815,-200.0,0.00020897,2]
[349999979,1737559832824,-803.91,0.00020897,2]
[349999981,1737559832834,-500.0,0.00020897,2]
[349999983,1737559832843,-500.0,0.00020897,2]
[349999984,1737559832852,-616.54,0.00020897,2]
[349999986,1737559832861,-500.0,0.00020897,2]
[349999988,1737559832871,-522.74,0.00020897,2]
[349999990,1737559832880,-500.0,0.00020897,2]
[349999992,1737559832890,-500.0,0.00020897,2]
[349999994,1737559832899,-500.0,0.00020897,2]
[349999996,1737559832909,-500.0,0.00020897,2]
[349999998,1737559832918,-500.0,0.00020897,2]
[350000000,1737559832928,-500.0,0.00020897,2]
[350000002,1737559832937,-500.0,0.00020897,2]
[350000004,1737559832946,-500.0,0.00020897,2]
[350000006,1737559832956,-500.0,0.00020897,2]
[350000008,1737559832965,-500.0,0.00020897,2]
[350000010,1737559832974,-500.0,0.00020897,2]
[350000012,1737559832989,-500.0,0.00020897,2]
[350000014,1737559832998,-500.0,0.00020897,2]
[350000016,1737559833008,-500.0,0.00020897,2]
[350000018,1737559833018,-500.0,0.00020897,2]
[350000020,1737559833028,-500.0,0.00020897,2]
[350000022,1737559833038,-500.0,0.00020897,2]
[350000024,1737559833048,-500.0,0.00020897,2]
[350000026,1737559833058,-500.0,0.00020897,2]
[350000028,1737559833068,-724.59,0.00020897,2]
[350000030,1737559833079,-500.0,0.00020897,2]
[350000032,1737559833089,-500.0,0.00020897,2]
[350000034,1737559833099,-553.57,0.00020897,2]
[350000036,1737559833109,-658.71,0.00020897,2]
[350000039,1737559833119,-500.0,0.00020897,2]
[350000040,1737559833128,-500.0,0.00020897,2]
[350000042,1737559833138,-500.0,0.00020897,2]
[350000044,1737559833148,-500.0,0.00020897,2]
[350000046,1737559833158,-500.0,0.00020897,2]
[350000048,1737559833168,-500.0,0.00020897,2]
[350000050,1737559833178,-577.4833008,0.00020897,2]
[350000052,1737559833189,-584.58,0.00020897,2]
[350000055,1737559833200,-500.0,0.00020897,2]
[350000057,1737559833210,-500.0,0.00020897,2]
[350000059,1737559833220,-500.0,0.00020897,2]
[350000061,1737559833231,-500.0,0.00020897,2]
[350000063,1737559833246,-500.0,0.00020897,2]
[350000065,1737559833255,-500.0,0.00020897,2]
[350000067,1737559833265,-500.0,0.00020897,2]
[350000069,1737559833276,-500.0,0.00020897,2]
[350000071,1737559833286,-564.32,0.00020897,2]
[350000072,1737559833296,-754.14,0.00020897,2]
[350000074,1737559833307,-904.28,0.00020897,2]
[350000076,1737559833319,-155.40298043,0.00020897,2]
[350000078,1737559833329,-500.0,0.00020897,2]
[350000080,1737559833339,-500.0,0.00020897,2]
[350000082,1737559833349,-500.0,0.00020897,2]
[350000084,1737559833359,-500.0,0.00020897,2]
[350000086,1737559833370,-1754.74,0.00020897,2]
[350000088,1737559833381,-500.0,0.00020897,2]
[350000090,1737559833391,-876.09,0.00020897,2]
[350000092,1737559833401,-500.0,0.00020897,2]
[350000094,1737559833411,-500.0,0.00020897,2]
[350000096,1737559833422,-686.57,0.00020897,2]
[350000098,1737559833432,-833.9,0.00020897,2]
[350000100,1737559833442,-500.0,0.00020897,2]
[350000102,1737559833452,-500.0,0.00020897,2]
[350000105,1737559833464,-500.0,0.00020897,2]
[350000106,1737559833478,-500.0,0.00020897,2]
[350000109,1737559833492,-500.0,0.00020897,2]
[350000111,1737559833502,-500.0,0.00020897,2]
[350000112,1737559833513,-520.78,0.00020897,2]
[350000115,1737559833523,-500.0,0.00020897,2]
[350000117,1737559833533,-500.0,0.00020897,2]
[350000119,1737559833543,-500.0,0.00020897,2]
[350000121,1737559833553,-500.0,0.00020897,2]
[350000123,1737559833563,-573.05,0.00020897,2]
[350000125,1737559833573,-500.0,0.00020897,2]
[350000127,1737559833583,-500.0,0.00020897,2]
[350000129,1737559833593,-521.09,0.00020897,2]
[350000131,1737559833603,-500.0,0.00020897,2]
[350000133,1737559833612,-607.68,0.00020897,2]
[350000135,1737559833622,-1000.0,0.000209,2]
[350000137,1737559833631,-473.92486827,0.000209,2]
[350000139,1737559833640,-3220.73671469,0.00020901,2]
[350000141,1737559833650,-2360.08799691,0.00020903,2]
[350000143,1737559833660,-16697.91379615,0.00020906,2]
[350000144,1737559833669,-200.0,0.00020907,2]
[350000146,1737559833679,-279.809114,0.00020909,2]
[350000147,1737559833687,-543.59678975,0.00020934,2]
[350000148,1737559833697,-2360.08799691,0.00020936,2]
[350000149,1737559833706,-226.71,0.00020955,2]
[350000150,1737559833715,-1000.0,0.00020964,2]
[350000151,1737559833724,-1006.8,0.00020964,2]
[350000152,1737559833734,-666.24,0.00020964,2]
[350000153,1737559833746,-500.0,0.00020964,2]
[350000154,1737559833757,-1891.84,0.00020964,2]
[350000155,1737559833767,-723.62,0.00020964,2]
[350000156,1737559833776,-1279.43,0.00020964,2]
[350000157,1737559833785,-1884.29,0.00020964,2]
[350000158,1737559833794,-1305.02,0.00020964,2]
[350000159,1737559833803,-1478.54,0.00020964,2]
[350000160,1737559833812,-500.0,0.00020964,2]
[350000161,1737559833821,-932.77,0.00020964,2]
[350000162,1737559833831,-500.0,0.00020964,2]
[350000163,1737559833841,-1080.68,0.00020964,2]
[350000164,1737559833851,-2022.63,0.00020964,2]
[350000165,1737559833860,-1737.05,0.00020964,2]
[350000166,1737559833870,-1129.16,0.00020964,2]
[350000167,1737559833879,-500.0,0.00020964,2]
[350000168,1737559833889,-986.56,0.00020964,2]
[350000169,1737559833900,-674.2,0.00020964,2]
[350000170,1737559833910,-2819.53,0.00020964,2]
[350000171,1737559833920,-500.0,0.00020964,2]
[350000172,1737559833929,-1280.34,0.00020964,2]
[350000173,1737559834090,-500.0,0.00020964,2]
[350000174,1737559834101,-696.48,0.00020964,2]
[350000175,1737559834121,-500.0,0.00020964,2]
[350000176,1737559834140,-715.26,0.00020964,2]
[350000177,1737559834150,-500.0,0.00020964,2]
[350000178,1737559834160,-500.0,0.00020964,2]
[350000179,1737559834170,-500.0,0.00020964,2]
[350000180,1737559834180,-500.0,0.00020964,2]
[350000181,1737559834190,-500.0,0.00020964,2]
[350000182,1737559834200,-500.0,0.00020964,2]
[350000183,1737559834209,-528.59,0.00020964,2]
[350000184,1737559834219,-500.0,0.00020964,2]
[350000185,1737559834230,-3381.0,0.00020964,2]
[350000186,1737559834242,-500.0,0.00020964,2]
[350000187,1737559834252,-347.36696491,0.00020964,2]
[350000188,1737559834261,-500.0,0.00020965,2]
[350000189,1737559834271,-586.67301721,0.00020965,2]
[350000190,1737559834281,-500.0,0.00020965,2]
[350000191,1737559834292,-500.0,0.00020965,2]
[350000192,1737559834302,-760.91,0.00020965,2]
[350000193,1737559834312,-691.93,0.00020965,2]
[350000194,1737559834322,-571.38,0.00020965,2]
[350000195,1737559834332,-819.94,0.00020965,2]
[350000196,1737559834341,-500.0,0.00020965,2]
[350000197,1737559834352,-500.0,0.00020965,2]
[350000198,1737559834363,-500.0,0.00020965,2]
[350000199,1737559834373,-500.0,0.00020965,2]
[350000200,1737559834383,-500.0,0.00020965,2]
[350000201,1737559834393,-500.0,0.00020965,2]
[350000202,1737559834403,-743.05,0.00020965,2]
[350000203,1737559834413,-500.0,0.00020965,2]
[350000204,1737559834423,-500.0,0.00020965,2]
[350000205,1737559834433,-500.0,0.00020965,2]
[350000206,1737559834443,-793.87,0.00020965,2]
[350000207,1737559834454,-500.0,0.00020965,2]
[350000208,1737559834470,-155.54175711,0.00020965,2]
[350000209,1737559834480,-949.38,0.00020965,2]
[350000210,1737559834492,-500.0,0.00020965,2]